bitfinex/quotes_BTCUSD_20260125
["timestamp","ask_amount","ask_price","bid_price","bid_amount"]
[1769381158520,0.01156176,86492.0,86478.0,1.10341589]
[1769381158726,0.00795265,86495.0,86479.0,0.13478023]
[1769381158925,0.06936911,86494.0,86479.0,0.13478023]
[1769381159133,0.01156149,86494.0,86479.0,0.13478023]
[1769381159486,0.01156162,86493.0,86479.0,0.13478023]
[1769381159700,0.0693698,86493.0,86479.0,0.13478023]
[1769381159929,0.01156162,86493.0,86475.0,0.17756]
[1769381160145,0.01156189,86491.0,86475.0,0.17756]
[1769381160362,0.00795265,86488.0,86473.0,0.31238023]
[1769381162627,0.01156176,86492.0,86473.0,0.31238023]
[1769381162628,0.01156149,86494.0,86476.0,1.10341589]
[1769381162801,0.01156149,86494.0,86479.0,0.13478023]
[1769381162987,0.01156149,86494.0,86474.0,0.01156416]
[1769381162988,0.01156162,86493.0,86482.0,1.10341589]
[1769381163184,0.01156149,86494.0,86483.0,0.13484552]
[1769381163619,0.01156162,86493.0,86483.0,0.13484552]
[1769381163817,0.01156149,86494.0,86483.0,0.13484552]
[1769381164020,0.01156162,86493.0,86483.0,0.13484552]
[1769381164602,0.01156149,86494.0,86483.0,0.13484552]
[1769381164811,0.01156162,86493.0,86483.0,0.13484552]
[1769381165019,0.01156176,86492.0,86483.0,0.13484552]
[1769381165821,0.13675812,86498.0,86483.0,0.13484552]
[1769381166018,0.13675812,86498.0,86483.0,0.1349866]
[1769381166243,0.01156162,86493.0,86483.0,0.1349866]
[1769381166624,0.01156149,86494.0,86483.0,0.00014108]
[1769381167073,0.01156136,86495.0,86483.0,0.00014108]
[1769381167282,0.01156162,86493.0,86483.0,0.00014108]
[1769381168255,0.01156149,86494.0,86483.0,0.00014108]
[1769381168510,0.01156122,86496.0,86483.0,0.00014108]
[1769381168675,0.01156136,86495.0,86483.0,0.00014108]
[1769381168869,0.01156122,86496.0,86483.0,0.00014108]
[1769381169103,0.01156136,86495.0,86483.0,0.00014108]
[1769381169698,0.01156149,86494.0,86483.0,0.00014108]
[1769381169900,0.01156136,86495.0,86483.0,0.00014108]
[1769381170518,0.01156109,86497.0,86483.0,0.00014108]
[1769381170727,0.13675812,86498.0,86483.0,0.00014108]
[1769381170919,0.01156136,86495.0,86483.0,0.00014108]
[1769381171671,0.01156122,86496.0,86483.0,0.00014108]
[1769381171847,0.01156136,86495.0,86483.0,0.00014108]
[1769381172342,0.01156122,86496.0,86483.0,0.00014108]
[1769381174654,0.01156109,86497.0,86483.0,0.00014108]
[1769381174865,0.01156122,86496.0,86483.0,0.00014108]
[1769381175069,0.01156109,86497.0,86483.0,0.00014108]
[1769381175463,0.01156136,86495.0,86483.0,0.00014108]
[1769381176439,0.01156149,86494.0,86483.0,0.00014108]
[1769381177215,0.13675812,86498.0,86483.0,0.00014108]
[1769381177451,0.57317657,86602.0,86483.0,0.00014108]
[1769381177452,0.2447,86500.0,86483.0,0.00014108]
[1769381177673,0.2447,86500.0,86483.0,0.13378399]
[1769381177864,0.2447,86500.0,86484.0,0.13364291]
[1769381179573,0.2447,86501.0,86484.0,0.14520574]
[1769381179781,0.2447,86501.0,86484.0,1.12680889]
[1769381180013,0.2447,86501.0,86485.0,0.13364291]
[1769381180695,0.01156069,86500.0,86485.0,0.13364291]
[1769381180885,0.25626055,86501.0,86485.0,0.13364291]
[1769381181035,0.2447,86501.0,86487.0,0.13364291]
[1769381181237,0.2447,86501.0,86488.0,0.01791895]
[1769381181439,0.2447,86501.0,86488.0,0.01604056]
[1769381181859,0.2447,86501.0,86488.0,0.00174056]
[1769381182873,0.25626055,86501.0,86489.0,1.12680889]
[1769381183236,0.23119446,86508.0,86489.0,1.12680889]
[1769381183237,0.01155909,86512.0,86491.0,0.13364291]
[1769381183435,0.01155882,86514.0,86490.0,0.3504067]
[1769381183436,0.01155935,86510.0,86493.0,0.13364291]
[1769381183639,0.01155935,86510.0,86490.0,0.36196873]
[1769381183640,0.01155935,86510.0,86496.0,1.12680889]
[1769381184315,0.01155949,86509.0,86496.0,1.12680889]
[1769381184690,0.07618852,86511.0,86496.0,1.12680889]
[1769381185099,0.01155935,86510.0,86496.0,1.12680889]
[1769381185307,0.0646293,86511.0,86496.0,1.12680889]
[1769381185682,0.01155935,86510.0,86496.0,1.12680889]
[1769381185879,0.01155962,86508.0,86496.0,1.12680889]
[1769381186180,0.13550225,86508.0,86490.0,1.12680889]
[1769381187393,0.01155975,86507.0,86490.0,1.12680889]
[1769381187729,0.13550225,86508.0,86490.0,1.12680889]
[1769381188226,0.12394263,86507.0,86490.0,1.12680889]
[1769381188462,0.12394263,86507.0,86490.0,1.13837092]
[1769381189192,0.12394263,86507.0,86491.0,1.13837078]
[1769381189405,0.12394263,86507.0,86491.0,1.12680889]
[1769381189810,0.12394263,86507.0,86492.0,0.01156176]
[1769381190059,0.12394263,86507.0,86493.0,1.12680889]
[1769381190476,0.056973,86515.0,86493.0,1.12680889]
[1769381190676,0.01155935,86510.0,86493.0,1.12680889]
[1769381190878,0.13550185,86511.0,86493.0,1.12680889]
[1769381191034,0.12394263,86511.0,86493.0,1.12680889]
[1769381191236,0.12394263,86511.0,86494.0,0.01156149]
[1769381191449,0.12394263,86511.0,86493.0,1.12680889]
[1769381191450,0.2447,86518.0,86505.0,0.01156002]
[1769381191709,0.2447,86518.0,86510.0,1.12680889]
[1769381191950,0.00021,86519.0,86510.0,1.2604518]
[1769381192118,0.00021,86519.0,86510.0,1.12680889]
[1769381192327,0.00021,86519.0,86512.0,1.2604518]
[1769381195269,0.00021,86519.0,86513.0,0.13877517]
[1769381195480,0.05779641,86532.0,86516.0,1.23602604]
[1769381195684,0.14261759,86531.0,86511.0,0.01155922]
[1769381196158,0.13106104,86529.0,86511.0,0.01155922]
[1769381196358,0.13106104,86529.0,86509.0,0.19657203]
[1769381196652,0.14261785,86529.0,86510.0,0.01155935]
[1769381197179,0.14261785,86529.0,86509.0,1.30538287]
[1769381197559,0.13106104,86529.0,86510.0,0.01155935]
[1769381198530,0.13106104,86529.0,86511.0,0.01155922]
[1769381199070,0.14261785,86529.0,86509.0,1.24758553]
[1769381199274,0.01155695,86528.0,86509.0,1.24758553]
[1769381199493,0.14261785,86529.0,86509.0,1.24758553]
[1769381199939,0.01155695,86528.0,86509.0,1.24727651]
[1769381200148,0.01155695,86528.0,86509.0,1.23571702]
[1769381200449,0.01155695,86528.0,86509.0,1.24727651]
[1769381201285,0.01155708,86527.0,86509.0,1.09725087]
[1769381201636,0.01155708,86527.0,86510.0,1.23602604]
[1769381201838,0.01155695,86528.0,86510.0,1.23602604]
[1769381201986,0.01155708,86527.0,86510.0,1.23602604]
[1769381202593,0.01155695,86528.0,86510.0,1.23602604]
[1769381202804,0.14261785,86529.0,86510.0,1.23602604]
[1769381203652,0.14261785,86529.0,86510.0,1.24758539]
[1769381203883,0.01155695,86528.0,86510.0,1.23602604]
[1769381204033,0.14261799,86528.0,86510.0,1.23602604]
[1769381204216,0.13106104,86528.0,86510.0,1.23602604]
[1769381204560,0.13106104,86519.0,86500.0,0.48918187]
[1769381204779,0.06935472,86512.0,86500.0,0.3504067]
[1769381205064,0.14262013,86512.0,86500.0,0.3504067]
[1769381205238,0.13106104,86512.0,86500.0,0.3504067]
[1769381205633,0.14262013,86512.0,86500.0,0.3504067]
[1769381205829,0.13106104,86512.0,86500.0,0.3504067]
[1769381206606,0.18885699,86512.0,86500.0,0.3504067]
[1769381206715,0.13106104,86512.0,86500.0,0.3504067]
[1769381206922,0.14262013,86512.0,86497.0,0.17756]
[1769381207123,0.13106104,86512.0,86497.0,0.17756]
[1769381207749,0.14262013,86512.0,86497.0,0.17756]
[1769381208151,0.14262013,86512.0,86500.0,0.3504067]
[1769381208382,0.13106104,86512.0,86500.0,0.3504067]
[1769381208790,0.13106104,86512.0,86492.0,0.06937033]
[1769381208791,0.13106104,86512.0,86470.0,0.08490555]
[1769381208792,0.01156376,86477.0,86470.0,0.08490555]
[1769381209019,0.13106104,86474.0,86470.0,0.0848244]
[1769381209331,0.13106104,86474.0,86456.0,0.00261726]
[1769381209332,0.0115647,86470.0,86456.0,0.00261726]
[1769381209543,0.01156483,86469.0,86456.0,0.00261726]
[1769381209750,0.01125564,86470.0,86456.0,0.00261726]
[1769381209935,0.06938614,86473.0,86456.0,0.00308895]
[1769381209936,0.0115651,86467.0,86456.0,0.00308895]
[1769381210164,0.0115651,86467.0,86456.0,0.00077069]
[1769381210375,0.01156537,86465.0,86456.0,0.00077069]
[1769381210573,0.01156523,86466.0,86456.0,0.00077069]
[1769381210716,0.13106104,86467.0,86456.0,0.00077069]
[1769381211208,0.13114072,86467.0,86456.0,0.00077069]
[1769381211408,0.01156523,86466.0,86456.0,0.00077069]
[1769381211558,0.14270582,86467.0,86456.0,0.00077069]
[1769381211757,0.01156523,86466.0,86456.0,0.00077069]
[1769381212163,0.01156537,86465.0,86456.0,0.00077069]
[1769381213251,0.0115655,86464.0,86456.0,0.00077069]
[1769381213456,0.01156537,86465.0,86456.0,0.00077069]
[1769381213665,0.01164505,86465.0,86456.0,0.00077069]
[1769381214405,0.0115655,86464.0,86456.0,0.00077069]
[1769381214821,0.01125665,86462.0,86456.0,0.00077069]
[1769381215014,0.01156617,86459.0,86447.0,0.13804719]
[1769381215234,0.3504067,86460.0,86447.0,0.13818827]
[1769381215432,0.01156737,86450.0,86447.0,0.00014108]
[1769381215654,0.01156724,86451.0,86447.0,0.00014108]
[1769381216176,0.01156711,86452.0,86447.0,0.00014108]
[1769381216373,0.01156697,86453.0,86447.0,0.00014108]
[1769381216573,0.01156711,86452.0,86447.0,0.00014108]
[1769381216790,0.01156724,86451.0,86447.0,0.00014108]
[1769381216984,0.01156737,86450.0,86447.0,0.00014108]
[1769381217108,0.01125819,86450.0,86447.0,0.00014108]
[1769381217508,0.01156737,86450.0,86447.0,0.00014108]
[1769381217711,0.01156724,86451.0,86447.0,0.00014108]
[1769381217912,0.01156737,86450.0,86447.0,0.00014108]
[1769381218671,0.01163832,86447.0,86441.0,0.17756]
[1769381218869,0.01156818,86444.0,86441.0,0.17764733]
[1769381219082,0.15752019,86444.0,86439.0,0.000299]
[1769381219547,0.01156845,86442.0,86439.0,0.0001495]
[1769381219822,0.06910177,86442.0,86439.0,7.475e-05]
[1769381220034,0.05784304,86441.0,86439.0,7.475e-05]
[1769381220386,0.23757316,86465.0,86440.0,1.09725087]
[1769381220581,0.01156818,86444.0,86441.0,0.00145714]
[1769381220809,0.0694092,86444.0,86441.0,1e-08]
[1769381220972,0.01156845,86442.0,86439.0,7.475e-05]
[1769381221368,0.01156831,86443.0,86432.0,0.13877517]
[1769381221576,0.36197515,86442.0,86432.0,0.13891672]
[1769381221778,0.01156858,86441.0,86432.0,0.00014155]
[1769381221981,0.05036351,86442.0,86432.0,0.00014155]
[1769381222177,0.40077021,86442.0,86432.0,0.00014155]
[1769381222410,0.3504067,86442.0,86432.0,0.08402672]
[1769381222612,0.3504067,86442.0,86435.0,1.09725087]
[1769381222822,0.00014134,86442.0,86435.0,1.23602604]
[1769381225127,0.01156751,86449.0,86435.0,1.23602604]
[1769381225128,0.3504067,86450.0,86435.0,1.09725087]
[1769381225329,0.00494036,86441.0,86439.0,1.15436681]
[1769381225550,0.01156617,86459.0,86442.0,0.14473483]
[1769381225808,0.4198031,86460.0,86443.0,1.15436681]
[1769381225809,0.01156657,86456.0,86443.0,1.15436681]
[1769381225954,0.3504067,86452.0,86443.0,1.15436681]
[1769381226154,0.0115663,86458.0,86444.0,0.14473483]
[1769381226372,0.23129259,86471.0,86439.0,0.00014134]
[1769381226373,0.3504067,86470.0,86448.0,0.15630247]
[1769381226569,0.3504067,86470.0,86449.0,1.20064681]
[1769381226570,0.0115651,86467.0,86449.0,1.20064681]
[1769381226773,0.13903251,86466.0,86449.0,1.20064681]
[1769381227583,0.13903251,86466.0,86450.0,0.01156737]
[1769381227989,0.3504067,86470.0,86452.0,0.01156711]
[1769381228243,0.01156363,86478.0,86459.0,0.14473483]
[1769381228469,0.74550179,86505.0,86449.0,0.04628]
[1769381228471,0.3504067,86490.0,86472.0,1.16593124]
[1769381228610,0.3504067,86490.0,86475.0,0.14473483]
[1769381228816,0.3504067,86490.0,86478.0,1.15436681]
[1769381229031,0.3504067,86490.0,86480.0,1.15436681]
[1769381229287,0.01193049,86494.0,86474.0,0.01156416]
[1769381229288,0.01193049,86494.0,86483.0,0.14473483]
[1769381229527,0.01193049,86494.0,86474.0,0.01156416]
[1769381229528,0.000369,86494.0,86485.0,0.14442598]
[1769381229712,0.00084103,86494.0,86485.0,0.14411692]
[1769381232620,0.00084103,86494.0,86479.0,1.29910164]
[1769381232838,0.00084103,86494.0,86480.0,1.15436681]
[1769381233026,0.00084103,86494.0,86481.0,1.29910164]
[1769381233406,0.00084103,86494.0,86482.0,0.14473483]
[1769381233608,0.00184103,86494.0,86482.0,0.14473483]
[1769381234031,0.00184103,86494.0,86483.0,1.29910164]
[1769381234335,0.00184103,86494.0,86480.0,0.01156336]
[1769381234336,0.00084103,86494.0,86484.0,0.14473483]
[1769381234570,0.00084103,86494.0,86484.0,1.29910164]
[1769381234751,0.00084103,86494.0,86484.0,1.15436681]
[1769381234955,0.00184103,86494.0,86485.0,1.29910164]
[1769381235385,0.00184103,86494.0,86487.0,1.15436681]
[1769381235544,0.00184103,86494.0,86487.0,1.29910164]
[1769381235748,0.00184103,86494.0,86487.0,1.29894711]
[1769381236147,0.00084103,86494.0,86487.0,1.29894711]
[1769381236571,0.00184103,86494.0,86487.0,1.29894711]
[1769381236976,0.00084103,86494.0,86487.0,1.29894711]
[1769381237384,0.00184103,86494.0,86487.0,1.29894711]
[1769381238662,0.00184103,86494.0,86488.0,0.17764]
[1769381239494,0.00084103,86494.0,86488.0,0.17764]
[1769381240045,0.00184103,86494.0,86488.0,0.17764]
[1769381240484,0.00084103,86494.0,86488.0,0.17764]
[1769381240921,0.00184103,86494.0,86488.0,0.17764]
[1769381241548,0.00184103,86494.0,86488.0,0.22388]
[1769381242134,0.05780336,86501.0,86488.0,0.22388]
[1769381242318,0.05794488,86501.0,86488.0,0.22388]
[1769381242458,0.01156082,86499.0,86488.0,0.22388]
[1769381242865,0.01156069,86500.0,86488.0,0.22372547]
[1769381243755,0.05781075,86490.0,86486.0,0.1776]
[1769381243938,0.1486843,86487.0,86468.0,1.31114783]
[1769381244153,0.1486843,86487.0,86469.0,0.22384]
[1769381244507,0.1486843,86487.0,86469.0,0.23540483]
[1769381244722,0.1486843,86487.0,86469.0,0.22384]
[1769381245011,0.16024673,86487.0,86469.0,0.22384]
[1769381245193,0.1486843,86487.0,86469.0,0.22384]
[1769381245324,0.1486843,86487.0,86470.0,0.22384]
[1769381245521,0.1486843,86487.0,86468.0,1.29958286]
[1769381245742,0.1486843,86483.0,86469.0,0.22384]
[1769381246647,0.1486843,86483.0,86469.0,1.37637016]
[1769381247041,0.01156256,86486.0,86469.0,1.37637016]
[1769381247241,0.01156283,86484.0,86469.0,1.15253016]
[1769381247447,0.01156283,86484.0,86470.0,0.22384]
[1769381248133,0.1486843,86484.0,86470.0,0.22384]
[1769381248354,0.01156296,86483.0,86458.0,0.0115663]
[1769381248524,0.01156376,86477.0,86467.0,0.04624]
[1769381248738,0.0115635,86479.0,86467.0,0.04624]
[1769381249383,0.01156376,86477.0,86460.0,0.1470527]
[1769381249538,0.01156443,86472.0,86464.0,0.1776]
[1769381249751,0.16024833,86475.0,86464.0,0.17744547]
[1769381249957,0.01156416,86474.0,86460.0,0.35052769]
[1769381250219,0.1486843,86473.0,86460.0,0.52812769]
[1769381250326,0.1486843,86471.0,86460.0,0.52812769]
[1769381250533,0.1486843,86471.0,86460.0,0.1776]
[1769381250742,0.14882574,86471.0,86460.0,0.1776]
[1769381250954,0.0115651,86467.0,86460.0,0.1776]
[1769381251174,0.01156497,86468.0,86460.0,0.1776]
[1769381251381,0.01156497,86468.0,86452.0,1.15253016]
[1769381251382,0.1486843,86469.0,86452.0,1.15253016]
[1769381251577,0.01156537,86465.0,86452.0,1.15253016]
[1769381251790,0.01156523,86466.0,86449.0,0.3246527]
[1769381251791,0.01156564,86463.0,86449.0,0.3246527]
[1769381251982,0.0115655,86464.0,86449.0,0.3246527]
[1769381252262,0.01156537,86465.0,86449.0,1.47718286]
[1769381252482,0.01156564,86463.0,86449.0,1.47718286]
[1769381252701,0.0115655,86464.0,86449.0,1.47718286]
[1769381252893,0.01156564,86463.0,86450.0,1.15253016]
[1769381253103,0.0115655,86464.0,86450.0,1.15253016]
[1769381253589,0.01156577,86462.0,86450.0,1.15253016]
[1769381253827,0.01156564,86463.0,86450.0,1.15253016]
[1769381254893,0.0115655,86464.0,86450.0,1.15253016]
[1769381256416,0.01156577,86462.0,86450.0,1.15253016]
[1769381256640,0.01156564,86463.0,86450.0,1.15253016]
[1769381257252,0.01156564,86463.0,86449.0,0.3246527]
[1769381257500,0.0115655,86464.0,86449.0,0.3246527]
[1769381257732,0.01156564,86463.0,86449.0,0.3246527]
[1769381257963,0.01156564,86463.0,86449.0,0.3245427]
[1769381258690,0.01156577,86462.0,86449.0,0.3245427]
[1769381258902,0.06939522,86462.0,86449.0,0.3245427]
[1769381259092,0.01156577,86462.0,86449.0,0.3245427]
[1769381259688,0.0115659,86461.0,86450.0,1.12865938]
[1769381260482,0.01156604,86460.0,86450.0,1.12865938]
[1769381260672,0.01156604,86460.0,86449.0,0.1776]
[1769381260673,0.16417665,86460.0,86449.0,0.1776]
[1769381260856,0.01156617,86459.0,86449.0,0.1776]
[1769381261052,0.16417665,86460.0,86449.0,0.1776]
[1769381262136,0.01156617,86459.0,86449.0,0.1776]
[1769381262272,0.01156697,86453.0,86445.0,0.17764]
[1769381262478,0.01156684,86454.0,86445.0,0.17764]
[1769381262718,0.16417718,86456.0,86445.0,0.17764]
[1769381263375,0.01156671,86455.0,86445.0,0.17764]
[1769381263584,0.01156684,86454.0,86445.0,0.17764]
[1769381263870,0.01156684,86454.0,86439.0,0.000369]
[1769381263871,0.01156751,86449.0,86439.0,0.000369]
[1769381264084,0.01156671,86455.0,86439.0,0.000369]
[1769381264297,0.01156671,86455.0,86440.0,1.12865938]
[1769381264536,0.01156604,86460.0,86444.0,1.12865938]
[1769381264749,0.0115659,86461.0,86447.0,0.14670118]
[1769381264970,0.2313014,86468.0,86447.0,0.14670118]
[1769381264971,0.16417504,86472.0,86453.0,0.14670118]
[1769381265191,0.01156443,86472.0,86457.0,0.14670118]
[1769381265407,0.01156443,86472.0,86460.0,1.12865938]
[1769381265588,0.01156416,86474.0,86461.0,1.27536056]
[1769381265803,0.01156403,86475.0,86461.0,1.27536056]
[1769381266144,0.36209105,86480.0,86461.0,1.12865938]
[1769381266347,0.36209105,86480.0,86464.0,0.14670118]
[1769381266549,0.0115635,86479.0,86464.0,0.06506307]
[1769381266791,0.0115635,86479.0,86464.0,0.00718494]
[1769381266999,0.01156363,86478.0,86464.0,0.00718494]
[1769381267201,0.36209105,86480.0,86464.0,0.00718494]
[1769381267376,0.15261061,86481.0,86465.0,0.01156537]
[1769381267572,0.01156269,86485.0,86467.0,0.14670118]
[1769381267779,0.35052769,86480.0,86468.0,1.27536056]
[1769381268037,0.15261061,86479.0,86465.0,0.00047203]
[1769381268318,0.16417411,86479.0,86465.0,0.00047203]
[1769381268459,0.01156363,86478.0,86465.0,0.00047203]
[1769381268655,0.15261061,86477.0,86465.0,0.00047203]
[1769381269145,0.16417437,86477.0,86465.0,0.00047203]
[1769381269519,0.01156457,86471.0,86465.0,0.00047203]
[1769381269720,0.35052769,86490.0,86400.0,1.06314951]
[1769381269721,0.16417691,86458.0,86440.0,0.14670118]
[1769381269930,0.15261061,86455.0,86443.0,0.09216]
[1769381270561,0.17013534,86455.0,86443.0,0.09216]
[1769381270774,0.15261061,86454.0,86443.0,0.09216]
[1769381272774,0.16417745,86454.0,86443.0,0.09216]
[1769381273554,0.01156697,86453.0,86443.0,0.09216]
[1769381273735,0.16417745,86454.0,86443.0,0.09216]
[1769381273932,0.01156697,86453.0,86440.0,0.00014144]
[1769381274229,0.05783369,86455.0,86440.0,0.00014144]
[1769381274230,0.01156778,86447.0,86440.0,0.00014144]
[1769381274552,0.15261061,86446.0,86440.0,0.00014144]
[1769381276624,0.16417852,86446.0,86440.0,0.00014144]
[1769381276826,0.15261061,86446.0,86440.0,0.00014144]
[1769381278396,0.01156818,86444.0,86440.0,0.00014144]
[1769381278587,0.16417852,86446.0,86440.0,0.00014144]
[1769381278793,0.01156804,86445.0,86440.0,0.00014144]
[1769381279420,0.16417852,86446.0,86440.0,0.00014144]
[1769381280386,0.01156804,86445.0,86440.0,0.00014144]
[1769381280729,0.15261061,86446.0,86440.0,0.00014144]
[1769381281906,0.01156751,86449.0,86440.0,0.00014144]
[1769381282121,0.01156764,86448.0,86440.0,0.00014144]
[1769381282339,0.16417812,86449.0,86440.0,0.00014144]
[1769381282772,0.01156764,86448.0,86440.0,0.00014144]
[1769381283194,0.14363009,86446.0,86440.0,0.00014144]
[1769381284518,0.14363009,86446.0,86440.0,0.00062474]
[1769381286115,0.01156831,86443.0,86440.0,0.00062474]
[1769381286318,0.14363009,86445.0,86440.0,0.00062474]
[1769381286845,0.15519813,86445.0,86440.0,0.00062474]
[1769381286999,0.14363009,86445.0,86440.0,0.00062474]
[1769381288315,0.16115615,86445.0,86440.0,0.00062474]
[1769381288491,0.14363009,86444.0,86440.0,0.00062474]
[1769381288691,0.01156804,86445.0,86440.0,0.00062474]
[1769381289117,0.01156791,86446.0,86440.0,0.00062474]
[1769381289446,0.01156831,86443.0,86440.0,0.00062474]
[1769381289852,0.01156804,86445.0,86440.0,0.00062474]
[1769381290057,0.01156791,86446.0,86440.0,0.00062474]
[1769381290512,0.01156831,86443.0,86440.0,0.00062474]
[1769381290689,0.01156804,86445.0,86440.0,0.00062474]
[1769381291306,0.01156818,86444.0,86440.0,0.00062474]
[1769381292664,0.01156831,86443.0,86440.0,0.00062474]
[1769381293234,0.01156791,86446.0,86440.0,0.00062474]
[1769381293936,0.15519787,86447.0,86440.0,0.00062474]
[1769381294146,0.01156791,86446.0,86440.0,0.00062474]
[1769381294595,0.01156804,86445.0,86440.0,0.00062474]
[1769381294720,0.07157942,86447.0,86440.0,0.00062474]
[1769381294921,0.01156818,86444.0,86440.0,0.00062474]
[1769381295120,0.01156804,86445.0,86440.0,0.00062474]
[1769381300464,0.01156818,86444.0,86440.0,0.00062474]
[1769381301124,0.01156818,86444.0,86440.0,0.0004702]
[1769381302163,0.01156831,86443.0,86440.0,0.0004702]
[1769381302479,0.01156818,86444.0,86440.0,0.0004702]
[1769381302685,0.01156831,86443.0,86440.0,0.0004702]
[1769381302920,0.01374046,86447.0,86440.0,0.0004702]
[1769381303122,0.15480376,86450.0,86440.0,0.0004702]
[1769381303922,0.01752553,86449.0,86440.0,0.0004702]
[1769381304523,0.50559272,86450.0,86440.0,0.0004702]
[1769381304720,0.01156751,86449.0,86440.0,0.0004702]
[1769381305132,0.33528194,86450.0,86440.0,0.0004702]
[1769381305599,0.01156751,86449.0,86440.0,0.0004702]
[1769381306115,0.01156764,86448.0,86440.0,0.0004702]
[1769381306318,0.01156751,86449.0,86440.0,0.0004702]
[1769381307177,0.01156764,86448.0,86440.0,0.0004702]
[1769381307403,0.01156751,86449.0,86440.0,0.0004702]
[1769381307810,0.01156764,86448.0,86440.0,0.0004702]
[1769381308012,0.01156751,86449.0,86440.0,0.0004702]
[1769381308483,0.01156764,86448.0,86440.0,0.0004702]
[1769381308719,0.01156751,86449.0,86440.0,0.0004702]
[1769381309271,0.35078896,86450.0,86441.0,0.07841964]
[1769381309481,0.33648896,86450.0,86442.0,0.01863699]
[1769381309692,0.33648896,86450.0,86442.0,0.0004702]
[1769381309953,0.01156697,86453.0,86442.0,0.0004702]
[1769381310401,0.01156697,86453.0,86442.0,0.00016114]
[1769381310402,0.15480363,86451.0,86442.0,0.00016114]
[1769381310626,0.14323639,86451.0,86442.0,2e-08]
[1769381310806,0.01156737,86450.0,86442.0,2e-08]
[1769381311153,0.01156724,86451.0,86442.0,2e-08]
[1769381311358,0.01156737,86450.0,86442.0,2e-08]
[1769381311601,0.01156724,86451.0,86442.0,2e-08]
[1769381311814,0.01156737,86450.0,86442.0,2e-08]
[1769381312185,0.01156724,86451.0,86442.0,2e-08]
[1769381313219,0.36235607,86452.0,86442.0,2e-08]
[1769381313434,0.01156724,86451.0,86442.0,2e-08]
[1769381313617,0.36235607,86452.0,86442.0,2e-08]
[1769381313828,0.01156724,86451.0,86442.0,2e-08]
[1769381314049,0.35078896,86452.0,86442.0,2e-08]
[1769381314509,0.36235607,86452.0,86442.0,2e-08]
[1769381314708,0.01156724,86451.0,86442.0,2e-08]
[1769381315360,0.01156737,86450.0,86442.0,2e-08]
[1769381315777,0.01156724,86451.0,86442.0,2e-08]
[1769381315975,0.01156737,86450.0,86442.0,2e-08]
[1769381316195,0.01156751,86449.0,86442.0,2e-08]
[1769381316359,0.01156737,86450.0,86442.0,2e-08]
[1769381316976,0.35078896,86452.0,86442.0,2e-08]
[1769381317177,0.01156644,86457.0,86444.0,0.14387369]
[1769381317352,0.11570225,86456.0,86445.0,0.93179251]
[1769381317559,0.11570225,86455.0,86444.0,0.14387369]
[1769381317913,0.06939842,86458.0,86439.0,1.27177604]
[1769381318122,0.11570168,86457.0,86439.0,1.27177604]
[1769381318323,0.11570168,86456.0,86439.0,1.27177604]
[1769381318538,0.11570168,86455.0,86439.0,1.27177604]
[1769381318724,0.01156657,86456.0,86439.0,1.27177604]
[1769381318884,0.11565958,86455.0,86439.0,1.27177604]
[1769381319093,0.01156657,86456.0,86439.0,1.27177604]
[1769381319293,4.714e-05,86458.0,86441.0,1.12790235]
[1769381319473,0.11565329,86457.0,86444.0,0.14387369]
[1769381319707,4.714e-05,86458.0,86445.0,1.12790235]
[1769381319908,0.11565382,86457.0,86445.0,1.12790235]
[1769381320146,4.714e-05,86458.0,86445.0,1.12790235]
[1769381321433,0.1156392,86457.0,86445.0,1.12790235]
[1769381321643,0.01161344,86458.0,86445.0,1.12790235]
[1769381321845,0.11563879,86457.0,86445.0,1.1277478]
[1769381322051,0.01161344,86458.0,86445.0,1.1277478]
[1769381322205,0.11563589,86457.0,86445.0,1.1277478]
[1769381322382,0.01161344,86458.0,86445.0,1.1277478]
[1769381322720,0.11563596,86457.0,86445.0,1.1277478]
[1769381322929,0.01156644,86457.0,86445.0,1.1277478]
[1769381323366,0.01161344,86458.0,86438.0,0.01156898]
[1769381323582,0.11563421,86457.0,86440.0,0.14387369]
[1769381323803,0.01161344,86458.0,86443.0,1.12790235]
[1769381324010,0.11563472,86457.0,86443.0,1.12790235]
[1769381324208,0.01161344,86458.0,86443.0,1.12790235]
[1769381324449,0.12476909,86459.0,86443.0,1.12790235]
[1769381324697,0.0115663,86458.0,86443.0,1.12794949]
[1769381325089,0.01156644,86457.0,86443.0,1.12794949]
[1769381325645,0.0115663,86458.0,86443.0,1.12794949]
[1769381325965,0.07850437,86459.0,86443.0,1.12794949]
[1769381326779,0.0115663,86458.0,86443.0,1.12794949]
[1769381326983,0.0115663,86458.0,86443.0,1.27182318]
[1769381327719,0.01156617,86459.0,86443.0,1.27182318]
[1769381327934,0.06939705,86459.0,86443.0,1.27182318]
[1769381328137,0.01156617,86459.0,86443.0,1.27182318]
[1769381328557,0.0115663,86458.0,86443.0,1.27182318]
[1769381328729,0.01156617,86459.0,86443.0,1.27182318]
[1769381328931,0.48565009,86460.0,86443.0,1.27182318]
[1769381329116,0.01156617,86459.0,86443.0,1.27182318]
[1769381329319,0.48565009,86460.0,86443.0,1.27182318]
[1769381329544,0.49721613,86460.0,86443.0,1.27089482]
[1769381329752,0.48565009,86460.0,86443.0,1.27089482]
[1769381330127,0.49721613,86460.0,86443.0,1.27089482]
[1769381330307,0.48565009,86460.0,86443.0,1.27089482]
[1769381330621,0.01156617,86459.0,86443.0,1.27089482]
[1769381330823,0.0115663,86458.0,86443.0,1.27089482]
[1769381331038,0.01156617,86459.0,86443.0,1.27089482]
[1769381331582,0.48565009,86460.0,86443.0,1.27089482]
[1769381331917,0.01156617,86459.0,86443.0,1.27089482]
[1769381332319,0.01156617,86459.0,86445.0,1.12790235]
[1769381332521,0.01156617,86459.0,86446.0,1.27177604]
[1769381333161,0.362355,86460.0,86446.0,1.27177604]
[1769381333364,0.01156617,86459.0,86446.0,1.27177604]
[1769381333766,0.1464273,86459.0,86443.0,4.714e-05]
[1769381334158,0.0115663,86458.0,86443.0,4.714e-05]
[1769381334365,0.1464273,86459.0,86443.0,1.27182318]
[1769381335042,0.0115663,86458.0,86443.0,1.27182318]
[1769381335593,0.13486113,86455.0,86443.0,4.714e-05]
[1769381335761,0.0693981,86458.0,86443.0,4.714e-05]
[1769381335762,0.0115663,86458.0,86443.0,4.714e-05]
[1769381336346,0.11562383,86457.0,86443.0,4.714e-05]
[1769381336544,0.11562383,86456.0,86443.0,4.714e-05]
[1769381336763,0.11562383,86455.0,86443.0,4.714e-05]
[1769381337098,0.0115663,86458.0,86443.0,4.714e-05]
[1769381337318,0.12719261,86457.0,86443.0,4.714e-05]
[1769381337518,0.11562617,86456.0,86443.0,4.714e-05]
[1769381337716,0.0115663,86458.0,86443.0,4.714e-05]
[1769381337879,0.1156271,86457.0,86443.0,4.714e-05]
[1769381338225,0.1156271,86456.0,86443.0,4.714e-05]
[1769381338458,0.0115663,86458.0,86443.0,4.714e-05]
[1769381338643,0.11562453,86457.0,86443.0,4.714e-05]
[1769381339199,0.11562453,86456.0,86443.0,4.714e-05]
[1769381339401,0.11562453,86455.0,86443.0,4.714e-05]
[1769381339612,0.11562453,86454.0,86443.0,4.714e-05]